[Event "RUS-ch Blitz 2021"]
[Site "Sochi"]
[Date "2021.10.11"]
[Round "11.18"]
[White "Murzin, Volodar"]
[Black "Samusenko, Maksim"]
[Result "1/2-1/2"]
[ECO "B02"]
[WhiteElo "2513"]
[BlackElo "2461"]
[Annotator "ChessBase"]
[PlyCount "135"]
[EventDate "2021.10.11"]
[EventType "blitz"]
[EventCountry "RUS"]
[SourceTitle "playchess.com"]
[Source "ChessBase"]
[SourceQuality "1"]
[TimeControl "180+2"]

1. e4 {[%emt 0:00:00]} d5 {[%emt 0:00:04]} 2. exd5 {[%emt 0:00:03]} Nf6 {
[%emt 0:00:00]} 3. Nc3 {[%emt 0:00:52]} Nxd5 {[%emt 0:00:00]} 4. Nf3 {[%emt 0:
00:00]} c6 {[%emt 0:00:20]} 5. d4 {[%emt 0:00:13]} Bf5 {[%emt 0:00:05]} 6. Bd3
{[%emt 0:00:09]} Bxd3 {[%emt 0:00:11]} 7. Qxd3 {[%emt 0:00:00]} e6 {[%emt 0:00:
00]} 8. O-O {[%emt 0:00:05]} Be7 {[%emt 0:00:05]} 9. Ne4 {[%emt 0:00:00]} O-O {
[%emt 0:00:11]} 10. Rd1 {[%emt 0:01:00]} Nd7 {[%emt 0:00:04]} 11. c4 {[%emt 0:
00:00]} N5f6 {[%emt 0:00:01]} 12. Ng3 {[%emt 0:00:01]} Qc7 {[%emt 0:00:05]} 13.
b3 {[%emt 0:00:13]} Rad8 {[%emt 0:00:16]} 14. Bb2 {[%emt 0:00:05]} Rfe8 {
[%emt 0:00:22]} 15. Qc2 {[%emt 0:00:18]} Bd6 {[%emt 0:00:29]} 16. Ne4 {[%emt 0:
00:22]} Nxe4 {[%emt 0:00:25]} 17. Qxe4 {[%emt 0:00:00]} Nf6 {[%emt 0:00:00]}
18. Qc2 {[%emt 0:00:00]} Be7 {[%emt 0:00:21]} 19. Re1 {[%emt 0:00:09]} c5 {
[%emt 0:00:09]} 20. Rad1 {[%emt 0:00:00]} cxd4 {[%emt 0:00:00]} 21. Nxd4 {
[%emt 0:00:05]} a6 {[%emt 0:00:00]} 22. Qe2 {[%emt 0:00:01]} Bb4 {[%emt 0:00:
13]} 23. Rf1 {[%emt 0:00:03]} Qf4 {[%emt 0:00:05]} 24. Nf3 {[%emt 0:00:06]} Qe4
{[%emt 0:00:13]} 25. Qxe4 {[%emt 0:00:05]} Nxe4 {[%emt 0:00:00]} 26. Bd4 {
[%emt 0:00:00]} Nc3 {[%emt 0:00:06]} 27. Bxc3 {[%emt 0:00:00]} Bxc3 {[%emt 0:
00:00]} 28. g3 {[%emt 0:00:05]} f6 {[%emt 0:00:05]} 29. Kg2 {[%emt 0:00:00]}
Kf7 {[%emt 0:00:00]} 30. Ng1 {[%emt 0:00:00]} e5 {[%emt 0:00:01]} 31. Ne2 {
[%emt 0:00:02]} Bb4 {[%emt 0:00:00]} 32. g4 {[%emt 0:00:05]} b5 {[%emt 0:00:04]
} 33. cxb5 {[%emt 0:00:00]} axb5 {[%emt 0:00:00]} 34. Ng3 {[%emt 0:00:05]} g6 {
[%emt 0:00:05]} 35. Kf3 {[%emt 0:00:00]} Ke6 {[%emt 0:00:00]} 36. Ne4 {[%emt 0:
00:03]} Ra8 {[%emt 0:00:04]} 37. Rc1 {[%emt 0:00:00]} Rec8 {[%emt 0:00:02]} 38.
h4 {[%emt 0:00:06]} h6 {[%emt 0:00:00]} 39. Rxc8 {[%emt 0:00:02]} Rxc8 {
[%emt 0:00:00]} 40. a4 {[%emt 0:00:00]} bxa4 {[%emt 0:00:03]} 41. bxa4 {
[%emt 0:00:00]} f5 {[%emt 0:00:00]} 42. gxf5+ {[%emt 0:00:00]} gxf5 {[%emt 0:
00:03]} 43. Ng3 {[%emt 0:00:02]} e4+ {[%emt 0:00:04]} 44. Kg2 {[%emt 0:00:04]}
Rc2 {[%emt 0:00:00]} 45. Kh3 {[%emt 0:00:06]} Bc5 {[%emt 0:00:01]} 46. f3 {
[%emt 0:00:02]} e3 {[%emt 0:00:05]} 47. f4 {[%emt 0:00:00]} Bb4 {[%emt 0:00:07]
} 48. Rb1 {[%emt 0:00:01]} Rc4 {[%emt 0:00:03]} 49. Rb3 {[%emt 0:00:03]} Bc5 {
[%emt 0:00:03]} 50. Ne2 {[%emt 0:00:03]} Rxa4 {[%emt 0:00:01]} 51. Kg3 {
[%emt 0:00:00]} Ra1 {[%emt 0:00:03]} 52. Rb8 {[%emt 0:00:03]} Re1 {[%emt 0:00:
04]} 53. Kf3 {[%emt 0:00:02]} Rf1+ {[%emt 0:00:00]} 54. Kg3 {[%emt 0:00:00]}
Rf2 {[%emt 0:00:00]} 55. Nc1 {[%emt 0:00:05]} Rc2 {[%emt 0:00:04]} 56. Nd3 {
[%emt 0:00:01]} Bd4 {[%emt 0:00:00]} 57. Re8+ {[%emt 0:00:01]} Kf7 {[%emt 0:00:
04]} 58. Rd8 {[%emt 0:00:02]} Bb6 {[%emt 0:00:01]} 59. Kf3 {[%emt 0:00:00]} e2
{[%emt 0:00:05]} 60. Rd7+ {[%emt 0:00:01]} Ke6 {[%emt 0:00:00]} 61. Rb7 {
[%emt 0:00:04]} Ba5 {[%emt 0:00:00]} 62. Rb5 {[%emt 0:00:02]} Ra2 {[%emt 0:00:
04]} 63. Re5+ {[%emt 0:00:01]} Kf6 {[%emt 0:00:02]} 64. Rxe2 {[%emt 0:00:02]}
Ra3 {[%emt 0:00:02]} 65. Ke3 {[%emt 0:00:03]} Bb6+ {[%emt 0:00:00]} 66. Kd2 {
[%emt 0:00:00]} Ra2+ {[%emt 0:00:03]} 67. Ke1 {[%emt 0:00:02]} Rxe2+ {[%emt 0:
00:02]} 68. Kxe2 {[%emt 0:00:01]} 1/2-1/2

[Event "RUS-ch Blitz 2021"]
[Site "Sochi"]
[Date "2021.10.11"]
[Round "11.19"]
[White "Oganian, Miran"]
[Black "Khegay, Dmitriy"]
[Result "0-1"]
[ECO "E04"]
[WhiteElo "2441"]
[BlackElo "2521"]
[Annotator "ChessBase"]
[PlyCount "144"]
[EventDate "2021.10.11"]
[EventType "blitz"]
[EventCountry "RUS"]
[SourceTitle "playchess.com"]
[Source "ChessBase"]
[SourceQuality "1"]
[TimeControl "180+2"]

1. d4 {[%emt 0:00:00]} Nf6 {[%emt 0:00:08]} 2. c4 {[%emt 0:00:00]} e6 {[%emt 0:
00:00]} 3. g3 {[%emt 0:00:00]} d5 {[%emt 0:00:00]} 4. Nf3 {[%emt 0:00:00]} dxc4
{[%emt 0:00:00]} 5. Bg2 {[%emt 0:00:00]} Bb4+ {[%emt 0:00:00]} 6. Bd2 {[%emt 0:
00:22]} a5 {[%emt 0:00:00]} 7. O-O {[%emt 0:00:10]} O-O {[%emt 0:00:00]} 8. Bg5
{[%emt 0:00:08]} h6 {[%emt 0:00:00]} 9. Bxf6 {[%emt 0:00:11]} Qxf6 {[%emt 0:00:
01]} 10. Qc2 {[%emt 0:00:04]} Nd7 {[%emt 0:00:19]} 11. Qxc4 {[%emt 0:00:06]} e5
{[%emt 0:00:00]} 12. a3 {[%emt 0:01:06]} Bd6 {[%emt 0:00:03]} 13. Nc3 {[%emt 0:
00:00]} Nb6 {[%emt 0:00:23]} 14. Qd3 {[%emt 0:00:07]} Bf5 {[%emt 0:00:28]} 15.
e4 {[%emt 0:00:15]} Be6 {[%emt 0:00:00]} 16. dxe5 {[%emt 0:00:17]} Bxe5 {
[%emt 0:00:00]} 17. Nxe5 {[%emt 0:00:00]} Qxe5 {[%emt 0:00:00]} 18. Rfd1 {
[%emt 0:00:03]} Bb3 {[%emt 0:00:01]} 19. Rd2 {[%emt 0:00:20]} Nc4 {[%emt 0:00:
01]} 20. Re2 {[%emt 0:00:00]} Rfd8 {[%emt 0:00:06]} 21. Qf3 {[%emt 0:00:00]} a4
{[%emt 0:00:08]} 22. Rc1 {[%emt 0:00:05]} c6 {[%emt 0:00:00]} 23. Qf4 {[%emt 0:
00:31]} Qxf4 {[%emt 0:00:13]} 24. gxf4 {[%emt 0:00:00]} Rd4 {[%emt 0:00:00]}
25. Bf1 {[%emt 0:00:01]} Rad8 {[%emt 0:00:00]} 26. f3 {[%emt 0:00:02]} Nb6 {
[%emt 0:00:27]} 27. Kf2 {[%emt 0:00:00]} Nd7 {[%emt 0:00:01]} 28. Ke3 {[%emt 0:
00:07]} Nf8 {[%emt 0:00:07]} 29. Rg2 {[%emt 0:00:00]} R4d7 {[%emt 0:00:15]} 30.
f5 {[%emt 0:00:01]} Nh7 {[%emt 0:00:17]} 31. h4 {[%emt 0:00:00]} Kf8 {[%emt 0:
00:00]} 32. Be2 {[%emt 0:00:00]} Nf6 {[%emt 0:00:03]} 33. Rcg1 {[%emt 0:00:07]}
Ne8 {[%emt 0:00:02]} 34. f4 {[%emt 0:00:02]} Re7 {[%emt 0:00:07]} 35. e5 {
[%emt 0:00:00]} Bc2 {[%emt 0:00:19]} 36. Bg4 {[%emt 0:00:06]} Bb3 {[%emt 0:00:
20]} 37. Bh3 {[%emt 0:00:03]} f6 {[%emt 0:00:15]} 38. e6 {[%emt 0:00:00]} Nd6 {
[%emt 0:00:00]} 39. Ke2 {[%emt 0:00:02]} Bc2 {[%emt 0:00:06]} 40. Ke1 {[%emt 0:
00:00]} Bxf5 {[%emt 0:00:00]} 41. Bxf5 {[%emt 0:00:05]} Nxf5 {[%emt 0:00:02]}
42. Nxa4 {[%emt 0:00:00]} Rxe6+ {[%emt 0:00:00]} 43. Re2 {[%emt 0:00:04]} Rxe2+
{[%emt 0:00:00]} 44. Kxe2 {[%emt 0:00:00]} Nxh4 {[%emt 0:00:03]} 45. Nc5 {
[%emt 0:00:00]} Re8+ {[%emt 0:00:04]} 46. Kd3 {[%emt 0:00:00]} Re7 {[%emt 0:00:
03]} 47. b4 {[%emt 0:00:09]} Kf7 {[%emt 0:00:00]} 48. a4 {[%emt 0:00:01]} g5 {
[%emt 0:00:13]} 49. a5 {[%emt 0:00:00]} Ng6 {[%emt 0:00:03]} 50. f5 {[%emt 0:
00:00]} Nf4+ {[%emt 0:00:00]} 51. Kc4 {[%emt 0:00:03]} h5 {[%emt 0:00:04]} 52.
b5 {[%emt 0:00:00]} cxb5+ {[%emt 0:00:00]} 53. Kxb5 {[%emt 0:00:00]} h4 {
[%emt 0:00:00]} 54. Kb6 {[%emt 0:00:06]} Nd5+ {[%emt 0:00:00]} 55. Kb5 {
[%emt 0:00:00]} h3 {[%emt 0:00:02]} 56. Ne6 {[%emt 0:00:01]} Nc7+ {[%emt 0:00:
05]} 57. Nxc7 {[%emt 0:00:06]} Rxc7 {[%emt 0:00:00]} 58. Rg3 {[%emt 0:00:00]}
h2 {[%emt 0:00:03]} 59. Rh3 {[%emt 0:00:00]} Rc2 {[%emt 0:00:00]} 60. Kb6 {
[%emt 0:00:04]} Rb2+ {[%emt 0:00:00]} 61. Kc7 {[%emt 0:00:00]} g4 {[%emt 0:00:
01]} 62. Rh7+ {[%emt 0:00:02]} Kg8 {[%emt 0:00:00]} 63. Rh4 {[%emt 0:00:01]} g3
{[%emt 0:00:02]} 64. Kd7 {[%emt 0:00:04]} Re2 {[%emt 0:00:02]} 65. Rh3 {
[%emt 0:00:04]} Kf7 {[%emt 0:00:08]} 66. Rh7+ {[%emt 0:00:04]} Kg8 {[%emt 0:00:
00]} 67. Rh3 {[%emt 0:00:00]} Re3 {[%emt 0:00:03]} 68. Kd6 {[%emt 0:00:04]} g2
{[%emt 0:00:01]} 69. Rxe3 {[%emt 0:00:03]} g1=Q {[%emt 0:00:03]} 70. Re8+ {
[%emt 0:00:02]} Kg7 {[%emt 0:00:00]} 71. Re7+ {[%emt 0:00:01]} Kf8 {[%emt 0:00:
02]} 72. Rxb7 {[%emt 0:00:01]} h1=Q {[%emt 0:00:04]} 0-1

[Event "RUS-ch Blitz 2021"]
[Site "Sochi"]
[Date "2021.10.11"]
[Round "11.21"]
[White "Pershin, Denis"]
[Black "Makarian, Rudik"]
[Result "0-1"]
[ECO "A63"]
[WhiteElo "2388"]
[BlackElo "2470"]
[Annotator "ChessBase"]
[PlyCount "62"]
[EventDate "2021.10.11"]
[EventType "blitz"]
[EventCountry "RUS"]
[SourceTitle "playchess.com"]
[Source "ChessBase"]
[SourceQuality "1"]
[TimeControl "180+2"]

1. d4 {[%emt 0:00:05]} Nf6 {[%emt 0:00:00]} 2. c4 {[%emt 0:00:00]} g6 {[%emt 0:
00:12]} 3. g3 {[%emt 0:00:04]} Bg7 {[%emt 0:00:00]} 4. Bg2 {[%emt 0:00:00]} c5
{[%emt 0:00:05]} 5. d5 {[%emt 0:00:00]} O-O {[%emt 0:00:00]} 6. Nc3 {[%emt 0:
00:04]} d6 {[%emt 0:00:00]} 7. Nf3 {[%emt 0:00:03]} e6 {[%emt 0:00:00]} 8. O-O
{[%emt 0:00:04]} exd5 {[%emt 0:00:01]} 9. cxd5 {[%emt 0:00:00]} Re8 {[%emt 0:
00:00]} 10. Re1 {[%emt 0:00:00]} a6 {[%emt 0:00:08]} 11. a4 {[%emt 0:00:02]}
Nbd7 {[%emt 0:00:07]} 12. Bf4 {[%emt 0:00:11]} Ng4 {[%emt 0:00:00]} 13. e4 {
[%emt 0:01:02]} Nde5 {[%emt 0:00:08]} 14. Nxe5 {[%emt 0:00:07]} Nxe5 {[%emt 0:
00:00]} 15. h3 {[%emt 0:00:27]} Rb8 {[%emt 0:00:04]} 16. Rb1 {[%emt 0:00:15]}
c4 {[%emt 0:00:13]} 17. Be3 {[%emt 0:00:16]} b5 {[%emt 0:00:04]} 18. axb5 {
[%emt 0:00:04]} axb5 {[%emt 0:00:00]} 19. b3 {[%emt 0:00:34]} b4 {[%emt 0:00:
26]} 20. Ne2 {[%emt 0:00:00]} Ba6 {[%emt 0:00:22]} 21. bxc4 {[%emt 0:00:11]}
Bxc4 {[%emt 0:00:01]} 22. Nd4 {[%emt 0:00:00]} Qd7 {[%emt 0:00:20]} 23. Qd2 {
[%emt 0:00:01]} b3 {[%emt 0:00:13]} 24. f4 {[%emt 0:00:06]} Nd3 {[%emt 0:00:00]
} 25. Red1 {[%emt 0:00:01]} Nc5 {[%emt 0:00:04]} 26. Nc6 {[%emt 0:00:02]} Nxe4
{[%emt 0:00:11]} 27. Bxe4 {[%emt 0:00:02]} Rxe4 {[%emt 0:00:00]} 28. Nxb8 {
[%emt 0:00:03]} Qxh3 {[%emt 0:00:01]} 29. Bf2 {[%emt 0:00:06]} Re2 {[%emt 0:00:
25]} 30. Qb4 {[%emt 0:00:00]} Rxf2 {[%emt 0:00:00]} 31. Kxf2 {[%emt 0:00:12]}
Qh2+ {[%emt 0:00:00]} 0-1

[Event "RUS-ch Blitz 2021"]
[Site "Sochi"]
[Date "2021.10.11"]
[Round "11.22"]
[White "Babanin, Gleb"]
[Black "Matinian, Nikita"]
[Result "1/2-1/2"]
[ECO "B72"]
[WhiteElo "2094"]
[BlackElo "2454"]
[Annotator "ChessBase"]
[PlyCount "183"]
[EventDate "2021.10.11"]
[EventType "blitz"]
[EventCountry "RUS"]
[SourceTitle "playchess.com"]
[Source "ChessBase"]
[SourceQuality "1"]
[TimeControl "180+2"]

1. e4 {[%emt 0:00:00]} c5 {[%emt 0:00:00]} 2. Nf3 {[%emt 0:00:02]} d6 {[%emt 0:
00:06]} 3. d4 {[%emt 0:00:02]} cxd4 {[%emt 0:00:00]} 4. Nxd4 {[%emt 0:00:00]}
Nf6 {[%emt 0:00:04]} 5. Nc3 {[%emt 0:00:02]} g6 {[%emt 0:00:00]} 6. Be3 {
[%emt 0:00:00]} Nc6 {[%emt 0:00:00]} 7. f3 {[%emt 0:00:07]} h5 {[%emt 0:00:00]}
8. Qd2 {[%emt 0:00:08]} Nxd4 {[%emt 0:00:00]} 9. Bxd4 {[%emt 0:00:02]} Bh6 {
[%emt 0:00:01]} 10. Be3 {[%emt 0:00:04]} Bxe3 {[%emt 0:00:01]} 11. Qxe3 {
[%emt 0:00:03]} Be6 {[%emt 0:00:02]} 12. Bb5+ {[%emt 0:00:07]} Kf8 {[%emt 0:00:
07]} 13. O-O {[%emt 0:00:16]} Qa5 {[%emt 0:00:00]} 14. Ba4 {[%emt 0:00:07]} Rc8
{[%emt 0:00:04]} 15. Bb3 {[%emt 0:00:00]} Qc5 {[%emt 0:00:04]} 16. Qxc5 {
[%emt 0:00:00]} Rxc5 {[%emt 0:00:00]} 17. Rfe1 {[%emt 0:00:18]} Kg7 {[%emt 0:
00:02]} 18. Bxe6 {[%emt 0:00:10]} fxe6 {[%emt 0:00:00]} 19. e5 {[%emt 0:00:00]}
dxe5 {[%emt 0:00:06]} 20. Re2 {[%emt 0:00:00]} e4 {[%emt 0:00:45]} 21. fxe4 {
[%emt 0:00:10]} Rd8 {[%emt 0:00:09]} 22. Rd1 {[%emt 0:00:11]} Rxd1+ {[%emt 0:
00:12]} 23. Nxd1 {[%emt 0:00:04]} b5 {[%emt 0:00:02]} 24. Kf2 {[%emt 0:00:15]}
Ng4+ {[%emt 0:00:11]} 25. Kg3 {[%emt 0:00:05]} Ne5 {[%emt 0:00:00]} 26. Ne3 {
[%emt 0:00:08]} b4 {[%emt 0:00:12]} 27. Kf4 {[%emt 0:00:08]} Kf6 {[%emt 0:00:
08]} 28. h4 {[%emt 0:00:06]} Ra5 {[%emt 0:00:00]} 29. Rd2 {[%emt 0:00:29]} Rxa2
{[%emt 0:00:08]} 30. b3 {[%emt 0:00:00]} Ra1 {[%emt 0:00:19]} 31. Rd8 {[%emt 0:
00:12]} Rh1 {[%emt 0:00:12]} 32. Kg3 {[%emt 0:00:19]} Re1 {[%emt 0:00:09]} 33.
Kf2 {[%emt 0:00:06]} Rc1 {[%emt 0:00:08]} 34. Rf8+ {[%emt 0:00:06]} Kg7 {
[%emt 0:00:03]} 35. Rb8 {[%emt 0:00:00]} a5 {[%emt 0:00:04]} 36. Kg3 {[%emt 0:
00:18]} Nc6 {[%emt 0:00:21]} 37. Rc8 {[%emt 0:00:02]} Nd4 {[%emt 0:00:00]} 38.
Rc4 {[%emt 0:00:00]} Ne2+ {[%emt 0:00:05]} 39. Kf2 {[%emt 0:00:06]} Nc3 {
[%emt 0:00:00]} 40. Kf3 {[%emt 0:00:00]} Rh1 {[%emt 0:00:14]} 41. g3 {[%emt 0:
00:03]} Ra1 {[%emt 0:00:13]} 42. Rc7 {[%emt 0:00:04]} Kf6 {[%emt 0:00:00]} 43.
Rc5 {[%emt 0:00:00]} a4 {[%emt 0:00:04]} 44. e5+ {[%emt 0:00:04]} Kf7 {[%emt 0:
00:00]} 45. bxa4 {[%emt 0:00:01]} Rxa4 {[%emt 0:00:06]} 46. Rc4 {[%emt 0:00:04]
} Nd5 {[%emt 0:00:03]} 47. Ke4 {[%emt 0:00:01]} Nc3+ {[%emt 0:00:06]} 48. Kd4 {
[%emt 0:00:03]} Ne2+ {[%emt 0:00:04]} 49. Kc5 {[%emt 0:00:00]} Nxg3 {[%emt 0:
00:03]} 50. Rxb4 {[%emt 0:00:00]} Ra5+ {[%emt 0:00:00]} 51. Kd4 {[%emt 0:00:05]
} Nf5+ {[%emt 0:00:00]} 52. Nxf5 {[%emt 0:00:01]} gxf5 {[%emt 0:00:01]} 53. c4
{[%emt 0:00:00]} Ra1 {[%emt 0:00:04]} 54. Rb3 {[%emt 0:00:03]} Rd1+ {[%emt 0:
00:00]} 55. Kc5 {[%emt 0:00:01]} f4 {[%emt 0:00:03]} 56. Rf3 {[%emt 0:00:03]}
Ke8 {[%emt 0:00:06]} 57. Rxf4 {[%emt 0:00:00]} Re1 {[%emt 0:00:00]} 58. Kd4 {
[%emt 0:00:03]} Kd7 {[%emt 0:00:00]} 59. Re4 {[%emt 0:00:04]} Rd1+ {[%emt 0:00:
00]} 60. Kc5 {[%emt 0:00:02]} Ra1 {[%emt 0:00:02]} 61. Rd4+ {[%emt 0:00:02]}
Kc7 {[%emt 0:00:00]} 62. Re4 {[%emt 0:00:01]} Ra5+ {[%emt 0:00:03]} 63. Kb4 {
[%emt 0:00:00]} Ra1 {[%emt 0:00:03]} 64. c5 {[%emt 0:00:09]} Kc6 {[%emt 0:00:
00]} 65. Rf4 {[%emt 0:00:01]} Rb1+ {[%emt 0:00:01]} 66. Kc4 {[%emt 0:00:02]}
Rc1+ {[%emt 0:00:02]} 67. Kd4 {[%emt 0:00:00]} Rxc5 {[%emt 0:00:01]} 68. Rf7 {
[%emt 0:00:00]} Rd5+ {[%emt 0:00:03]} 69. Ke4 {[%emt 0:00:00]} Ra5 {[%emt 0:00:
02]} 70. Kf4 {[%emt 0:00:04]} Kd5 {[%emt 0:00:08]} 71. Rxe7 {[%emt 0:00:01]}
Ra4+ {[%emt 0:00:01]} 72. Kg5 {[%emt 0:00:02]} Kxe5 {[%emt 0:00:01]} 73. Kxh5 {
[%emt 0:00:03]} Ra1 {[%emt 0:00:01]} 74. Rg7 {[%emt 0:00:04]} Rh1 {[%emt 0:00:
01]} 75. Rg2 {[%emt 0:00:03]} Kf4 {[%emt 0:00:02]} 76. Ra2 {[%emt 0:00:05]} e5
{[%emt 0:00:01]} 77. Ra4+ {[%emt 0:00:00]} e4 {[%emt 0:00:00]} 78. Rb4 {
[%emt 0:00:01]} Kf3 {[%emt 0:00:02]} 79. Kg5 {[%emt 0:00:02]} Rg1+ {[%emt 0:00:
03]} 80. Kf5 {[%emt 0:00:00]} e3 {[%emt 0:00:03]} 81. Rb3 {[%emt 0:00:03]} Rh1
{[%emt 0:00:06]} 82. Kg5 {[%emt 0:00:00]} Ra1 {[%emt 0:00:02]} 83. h5 {[%emt 0:
00:01]} Ra5+ {[%emt 0:00:01]} 84. Kg6 {[%emt 0:00:01]} Kf4 {[%emt 0:00:02]} 85.
Rxe3 {[%emt 0:00:04]} Kxe3 {[%emt 0:00:02]} 86. h6 {[%emt 0:00:01]} Ra6+ {
[%emt 0:00:00]} 87. Kg7 {[%emt 0:00:01]} Kf4 {[%emt 0:00:02]} 88. h7 {[%emt 0:
00:01]} Ra7+ {[%emt 0:00:00]} 89. Kg6 {[%emt 0:00:02]} Ra8 {[%emt 0:00:01]} 90.
Kg7 {[%emt 0:00:00]} Kg5 {[%emt 0:00:01]} 91. h8=Q {[%emt 0:00:02]} Rxh8 {
[%emt 0:00:04]} 92. Kxh8 {[%emt 0:00:02]} 1/2-1/2

[Event "RUS-ch Blitz 2021"]
[Site "Sochi"]
[Date "2021.10.11"]
[Round "11.23"]
[White "Savitskiy, Sergey"]
[Black "Shcherbin, Matvei"]
[Result "0-1"]
[ECO "B40"]
[WhiteElo "2439"]
[BlackElo "2366"]
[Annotator "NA"]
[PlyCount "45"]
[EventDate "2021.10.11"]
[EventType "blitz"]
[EventCountry "RUS"]
[SourceTitle "playchess.com"]
[Source "ChessBase"]
[SourceQuality "1"]
[TimeControl "180+2"]

1. e4 {[%emt 0:00:05]} c5 {[%emt 0:00:00]} 2. Nf3 {[%emt 0:00:00]} e6 {[%emt 0:
00:00]} 3. Nc3 {[%emt 0:00:03]} Nc6 {[%emt 0:00:01]} 4. g3 {[%emt 0:00:04]} Nf6
{[%emt 0:00:01]} 5. Bg2 {[%emt 0:00:03]} d5 {[%emt 0:00:09]} 6. exd5 {[%emt 0:
00:00]} Nxd5 {[%emt 0:00:00]} 7. O-O {[%emt 0:00:05]} Nxc3 {[%emt 0:00:08]} 8.
bxc3 {[%emt 0:00:00]} Be7 {[%emt 0:00:00]} 9. Rb1 {[%emt 0:00:06]} O-O {
[%emt 0:00:03]} 10. d4 {[%emt 0:00:04]} Qa5 {[%emt 0:00:10]} 11. Bf4 {[%emt 0:
01:03]} Qxc3 {[%emt 0:00:18]} 12. Rb3 {[%emt 0:00:26]} Qa5 {[%emt 0:00:01]} 13.
dxc5 {[%emt 0:00:04]} Qxc5 {[%emt 0:00:30]} 14. Qe2 {[%emt 0:00:00]} b6 {
[%emt 0:01:03]} 15. Be3 {[%emt 0:00:13]} Qh5 {[%emt 0:00:10]} 16. Qc4 {[%emt 0:
00:57]} Na5 {[%emt 0:00:06]} 17. Rb5 {[%emt 0:00:18]} Nxc4 {[%emt 0:00:04]} 18.
Rxh5 {[%emt 0:00:00]} Nxe3 {[%emt 0:00:03]} 19. fxe3 {[%emt 0:00:00]} Ba6 {
[%emt 0:00:01]} 20. Rd1 {[%emt 0:00:05]} Rad8 {[%emt 0:00:00]} 21. Nd4 {
[%emt 0:00:03]} g6 {[%emt 0:00:08]} 22. Re5 {[%emt 0:00:03]} Bf6 {[%emt 0:00:
06]} 23. Re4 {[%emt 0:00:00]} 0-1

[Event "RUS-ch Blitz 2021"]
[Site "Sochi"]
[Date "2021.10.11"]
[Round "11.24"]
[White "Dreev, Aleksey"]
[Black "Smirnov, Timofey"]
[Result "1-0"]
[ECO "D23"]
[WhiteElo "2635"]
[BlackElo "2409"]
[Annotator "ChessBase"]
[PlyCount "85"]
[EventDate "2021.10.11"]
[EventType "blitz"]
[EventCountry "RUS"]
[SourceTitle "playchess.com"]
[Source "ChessBase"]
[SourceQuality "1"]
[TimeControl "180+2"]

1. d4 {[%emt 0:00:00]} d5 {[%emt 0:00:04]} 2. c4 {[%emt 0:00:03]} c6 {[%emt 0:
00:00]} 3. Nf3 {[%emt 0:00:03]} Nf6 {[%emt 0:00:00]} 4. Qc2 {[%emt 0:00:04]}
dxc4 {[%emt 0:00:00]} 5. Qxc4 {[%emt 0:00:00]} Bg4 {[%emt 0:00:07]} 6. Nbd2 {
[%emt 0:00:07]} e6 {[%emt 0:00:08]} 7. g3 {[%emt 0:00:10]} Nbd7 {[%emt 0:00:00]
} 8. Bg2 {[%emt 0:00:00]} Bd6 {[%emt 0:00:13]} 9. Qb3 {[%emt 0:00:01]} Rb8 {
[%emt 0:00:30]} 10. Nc4 {[%emt 0:00:16]} Bc7 {[%emt 0:00:17]} 11. Qa3 {[%emt 0:
00:21]} Nb6 {[%emt 0:00:00]} 12. Nce5 {[%emt 0:00:18]} Bxf3 {[%emt 0:00:47]}
13. Nxf3 {[%emt 0:00:05]} a6 {[%emt 0:00:10]} 14. O-O {[%emt 0:00:05]} Bd6 {
[%emt 0:00:06]} 15. Qb3 {[%emt 0:00:00]} O-O {[%emt 0:00:01]} 16. Bg5 {[%emt 0:
00:18]} Be7 {[%emt 0:00:08]} 17. Rfd1 {[%emt 0:00:10]} Nfd5 {[%emt 0:00:27]}
18. Bd2 {[%emt 0:00:00]} Nd7 {[%emt 0:00:15]} 19. e4 {[%emt 0:00:08]} N5b6 {
[%emt 0:00:18]} 20. a4 {[%emt 0:00:20]} Bd6 {[%emt 0:00:05]} 21. Be3 {[%emt 0:
00:10]} Nc8 {[%emt 0:00:05]} 22. Qc2 {[%emt 0:00:14]} Ne7 {[%emt 0:00:03]} 23.
h4 {[%emt 0:00:11]} h6 {[%emt 0:00:02]} 24. h5 {[%emt 0:00:13]} Qa5 {[%emt 0:
00:02]} 25. e5 {[%emt 0:00:10]} Bb4 {[%emt 0:00:00]} 26. Qe4 {[%emt 0:00:07]}
Nf5 {[%emt 0:00:04]} 27. Bf4 {[%emt 0:00:10]} Qd5 {[%emt 0:00:00]} 28. Qe2 {
[%emt 0:00:03]} Qa5 {[%emt 0:00:00]} 29. g4 {[%emt 0:00:01]} Ne7 {[%emt 0:00:
03]} 30. g5 {[%emt 0:00:00]} hxg5 {[%emt 0:00:00]} 31. Nxg5 {[%emt 0:00:02]}
Nf5 {[%emt 0:00:03]} 32. Be4 {[%emt 0:00:03]} Rfe8 {[%emt 0:00:05]} 33. Bxf5 {
[%emt 0:00:04]} exf5 {[%emt 0:00:03]} 34. Qd3 {[%emt 0:00:00]} Qd5 {[%emt 0:00:
00]} 35. Qxf5 {[%emt 0:00:05]} Nf8 {[%emt 0:00:04]} 36. Rd3 {[%emt 0:00:10]}
Be7 {[%emt 0:00:00]} 37. Rg3 {[%emt 0:00:00]} Bxg5 {[%emt 0:00:00]} 38. Bxg5 {
[%emt 0:00:04]} Qe6 {[%emt 0:00:00]} 39. Qf3 {[%emt 0:00:00]} Nh7 {[%emt 0:00:
01]} 40. Bf6 {[%emt 0:00:00]} Nxf6 {[%emt 0:00:09]} 41. exf6 {[%emt 0:00:00]}
Qe4 {[%emt 0:00:02]} 42. Rxg7+ {[%emt 0:00:00]} Kf8 {[%emt 0:00:00]} 43. Qg3 {
[%emt 0:00:04]} 1-0

[Event "RUS-ch Blitz 2021"]
[Site "Sochi"]
[Date "2021.10.11"]
[Round "12.2"]
[White "Pridorozhni, Aleksei"]
[Black "Iljiushenok, Ilia"]
[Result "1/2-1/2"]
[ECO "C42"]
[WhiteElo "2564"]
[BlackElo "2554"]
[Annotator "ChessBase"]
[PlyCount "79"]
[EventDate "2021.10.11"]
[EventType "blitz"]
[EventCountry "RUS"]
[SourceTitle "playchess.com"]
[Source "ChessBase"]
[SourceQuality "1"]
[TimeControl "180+2"]

1. e4 {[%emt 0:00:04]} e5 {[%emt 0:00:00]} 2. Nf3 {[%emt 0:00:00]} Nf6 {
[%emt 0:00:00]} 3. Nxe5 {[%emt 0:00:07]} d6 {[%emt 0:00:02]} 4. Nf3 {[%emt 0:
00:00]} Nxe4 {[%emt 0:00:00]} 5. Qe2 {[%emt 0:00:05]} Qe7 {[%emt 0:00:13]} 6.
d3 {[%emt 0:00:00]} Nf6 {[%emt 0:00:07]} 7. Bg5 {[%emt 0:00:04]} Nbd7 {[%emt 0:
00:13]} 8. Nc3 {[%emt 0:00:02]} h6 {[%emt 0:00:10]} 9. Bh4 {[%emt 0:00:16]}
Qxe2+ {[%emt 0:00:19]} 10. Bxe2 {[%emt 0:00:03]} c6 {[%emt 0:00:16]} 11. O-O-O
{[%emt 0:00:01]} Be7 {[%emt 0:00:05]} 12. Rde1 {[%emt 0:00:04]} O-O {[%emt 0:
00:10]} 13. Bd1 {[%emt 0:00:00]} Bd8 {[%emt 0:00:16]} 14. Bg3 {[%emt 0:00:05]}
d5 {[%emt 0:00:06]} 15. Ne2 {[%emt 0:00:44]} Nb6 {[%emt 0:00:32]} 16. Ned4 {
[%emt 0:00:04]} Bg4 {[%emt 0:00:15]} 17. h3 {[%emt 0:00:04]} Bxf3 {[%emt 0:00:
04]} 18. Bxf3 {[%emt 0:00:15]} g6 {[%emt 0:00:09]} 19. Bf4 {[%emt 0:00:13]} Kg7
{[%emt 0:00:04]} 20. g4 {[%emt 0:00:02]} Nbd7 {[%emt 0:00:13]} 21. Bg3 {
[%emt 0:00:13]} Bb6 {[%emt 0:00:00]} 22. Nb3 {[%emt 0:00:03]} Rfe8 {[%emt 0:00:
05]} 23. c3 {[%emt 0:00:12]} Rxe1+ {[%emt 0:00:03]} 24. Rxe1 {[%emt 0:00:00]}
Re8 {[%emt 0:00:03]} 25. Kd2 {[%emt 0:00:07]} Rxe1 {[%emt 0:00:00]} 26. Kxe1 {
[%emt 0:00:03]} Kf8 {[%emt 0:00:13]} 27. Bd6+ {[%emt 0:00:05]} Kg7 {[%emt 0:00:
00]} 28. Ke2 {[%emt 0:00:03]} Ne8 {[%emt 0:00:03]} 29. Bf4 {[%emt 0:00:02]} Nc7
{[%emt 0:00:00]} 30. c4 {[%emt 0:00:21]} dxc4 {[%emt 0:00:00]} 31. dxc4 {
[%emt 0:00:00]} Ne6 {[%emt 0:00:00]} 32. Bd6 {[%emt 0:00:04]} Kf6 {[%emt 0:00:
13]} 33. Be4 {[%emt 0:00:09]} Ng5 {[%emt 0:00:00]} 34. Bg2 {[%emt 0:00:04]} Ne6
{[%emt 0:00:01]} 35. f4 {[%emt 0:00:05]} Nec5 {[%emt 0:00:06]} 36. Nd2 {
[%emt 0:00:13]} Ke6 {[%emt 0:00:07]} 37. Bxc5 {[%emt 0:00:00]} Nxc5 {[%emt 0:
00:00]} 38. b3 {[%emt 0:00:05]} Bc7 {[%emt 0:00:02]} 39. Ke3 {[%emt 0:00:00]}
Bb6 {[%emt 0:00:00]} 40. Ke2 {[%emt 0:00:02]} 1/2-1/2